bitfinex-derivatives/quotes_BTCF0:USTF0_20240923
["timestamp","ask_amount","ask_price","bid_price","bid_amount"]
[1727098448507,0.43395107,63364.0,63363.0,1.8608]
[1727098448809,0.078911,63372.0,63363.0,1.8608]
[1727098449013,0.3608,63378.0,63371.0,0.5508]
[1727098449207,0.3608,63378.0,63371.0,0.3608]
[1727098449208,0.43395107,63372.0,63371.0,0.3608]
[1727098450997,0.43395107,63372.0,63363.0,1.87616]
[1727098451202,0.43395107,63364.0,63363.0,1.8748]
[1727098451606,0.43395107,63364.0,63363.0,1.8648]
[1727098451806,0.43395107,63364.0,63363.0,1.8608]
[1727098452403,0.43395107,63364.0,63363.0,1.8638]
[1727098452613,0.51287207,63364.0,63363.0,1.503]
[1727098452815,0.51287207,63364.0,63363.0,1.8688]
[1727098453011,0.51287207,63364.0,63363.0,0.3688]
[1727098453324,0.51287207,63364.0,63363.0,0.008]
[1727098453914,0.51287207,63364.0,63363.0,0.3688]
[1727098453915,0.43395107,63364.0,63363.0,0.3688]
[1727098454110,0.43395107,63364.0,63363.0,0.805522]
[1727098454317,0.43395107,63364.0,63363.0,0.800522]
[1727098454507,0.083194,63385.0,63363.0,0.7216]
[1727098454709,0.078899,63381.0,63377.0,0.19]
[1727098454920,0.43395107,63378.0,63377.0,0.19]
[1727098455311,0.43395107,63378.0,63377.0,0.268904]
[1727098456226,0.44195107,63378.0,63377.0,0.270904]
[1727098457424,0.39458313,63378.0,63377.0,1.770904]
[1727098457928,0.00236742,63392.0,63386.0,0.078893]
[1727098458115,0.00236742,63392.0,63391.0,0.19]
[1727098458622,0.38895055,63392.0,63391.0,0.19]
[1727098458821,0.38895055,63392.0,63391.0,0.268887]
[1727098459415,0.39295055,63392.0,63391.0,0.191]
[1727098459609,0.47183655,63392.0,63391.0,0.001]
[1727098459920,0.47183655,63392.0,63391.0,0.3618]
[1727098460230,0.39295055,63392.0,63391.0,0.440687]
[1727098460414,0.39295055,63392.0,63391.0,0.630687]
[1727098460619,0.39295055,63392.0,63391.0,0.001]
[1727098460620,0.47183655,63392.0,63391.0,0.001]
[1727098460816,0.078892,63387.0,63386.0,0.001]
[1727098461024,0.46547513,63387.0,63386.0,0.001]
[1727098461214,0.078894,63385.0,63384.0,0.078895]
[1727098461419,0.46547713,63385.0,63384.0,0.078895]
[1727098462015,0.38658313,63385.0,63384.0,0.078895]
[1727098463422,0.38658313,63385.0,63384.0,0.439695]
[1727098463621,0.38658313,63385.0,63384.0,0.518591]
[1727098463828,0.38658313,63385.0,63384.0,0.439695]
[1727098464834,0.078902,63379.0,63378.0,0.3608]
[1727098465130,0.38658313,63379.0,63378.0,0.439702]
[1727098465429,0.38458313,63379.0,63378.0,0.439702]
[1727098465620,0.46348513,63379.0,63378.0,0.439702]
[1727098465823,0.38458313,63379.0,63378.0,0.439702]
[1727098467222,0.38458313,63379.0,63378.0,0.440702]
[1727098467626,0.078891,63388.0,63385.0,0.078894]
[1727098467811,0.00236742,63392.0,63387.0,0.3608]
[1727098468016,0.00236742,63392.0,63391.0,0.268887]
[1727098468424,0.38458313,63392.0,63391.0,0.19]
[1727098468731,0.38458313,63392.0,63391.0,0.268887]
[1727098469526,0.38458313,63392.0,63391.0,0.270887]
[1727098470025,0.0812328,63408.0,63400.0,0.078875]
[1727098470249,0.0812328,63408.0,63391.0,0.192]
[1727098470250,0.078873,63402.0,63401.0,0.3608]
[1727098470415,0.0812328,63408.0,63401.0,0.3608]
[1727098470416,0.0023668,63408.0,63401.0,0.3608]
[1727098470614,0.0023668,63408.0,63407.0,0.078867]
[1727098470831,0.0023668,63408.0,63404.0,0.078871]
[1727098471027,0.0023668,63408.0,63407.0,0.439667]
[1727098471217,0.0023668,63408.0,63407.0,0.48670947]
[1727098471420,0.38694993,63408.0,63407.0,0.439667]
[1727098471828,0.38694993,63408.0,63407.0,0.40784672]
[1727098472127,0.38458313,63408.0,63407.0,0.40784672]
[1727098472329,0.54231513,63408.0,63407.0,0.40884672]
[1727098472527,0.078876,63400.0,63397.0,0.06275586]
[1727098472733,0.078876,63400.0,63389.0,0.09413379]
[1727098472734,0.3608,63399.0,63389.0,0.19]
[1727098473128,0.3608,63399.0,63381.0,0.00088]
[1727098473129,0.3608,63391.0,63381.0,0.00088]
[1727098473359,0.078899,63381.0,63380.0,0.3608]
[1727098473524,0.078899,63381.0,63376.0,0.0023668]
[1727098473525,0.078904,63377.0,63376.0,0.0023668]
[1727098473835,0.078904,63377.0,63376.0,0.0812728]
[1727098474135,1.513064,63377.0,63368.0,0.078915]
[1727098474323,1.513064,63377.0,63363.0,0.439722]
[1727098474324,0.3608,63371.0,63363.0,0.439722]
[1727098474638,0.3608,63388.0,63369.0,0.3608]
[1727098474928,0.347802,63380.0,63379.0,0.3608]
[1727098475132,0.347802,63380.0,63379.0,0.1958]
[1727098475331,0.078904,63377.0,63376.0,0.006]
[1727098475543,0.520608,63377.0,63376.0,0.006]
[1727098475722,0.078917,63367.0,63366.0,0.3608]
[1727098477729,0.36168,63377.0,63366.0,0.3608]
[1727098477921,0.007,63367.0,63366.0,0.079918]
[1727098478115,0.007,63367.0,63366.0,0.630718]
[1727098478336,0.007,63367.0,63366.0,2.130718]
[1727098478534,0.013,63367.0,63366.0,2.130718]
[1727098478939,0.006,63367.0,63366.0,2.129718]
[1727098479137,0.003,63367.0,63366.0,2.129718]
[1727098480024,0.003,63367.0,63366.0,2.132718]
[1727098480526,0.078917,63368.0,63366.0,2.132718]
[1727098480726,0.078917,63367.0,63366.0,0.006]
[1727098480931,0.157844,63363.0,63362.0,0.3608]
[1727098481124,0.19,63367.0,63359.0,0.3608]
[1727098481125,0.15785,63360.0,63359.0,0.3608]
[1727098482741,0.15885,63360.0,63359.0,0.3608]
[1727098483823,0.078933,63354.0,63353.0,0.3608]
[1727098484057,0.157866,63354.0,63353.0,0.3608]
[1727098484521,1.231386,63354.0,63353.0,0.3608]
[1727098484727,0.078944,63345.0,63344.0,0.3608]
[1727098485133,0.072944,63345.0,63344.0,0.3608]
[1727098485333,0.067944,63345.0,63344.0,0.3608]
[1727098485637,0.3628,63354.0,63344.0,0.3608]
[1727098485834,0.3628,63354.0,63344.0,0.3678]
[1727098485835,0.001,63345.0,63344.0,0.3678]
[1727098486032,0.080944,63345.0,63344.0,0.3748]
[1727098486227,0.078939,63350.0,63346.0,0.078943]
[1727098486537,0.078942,63347.0,63346.0,0.078943]
[1727098486833,0.078942,63347.0,63344.0,0.3748]
[1727098486834,0.078944,63345.0,63344.0,0.3748]
[1727098487035,0.078941,63348.0,63344.0,0.3748]
[1727098487231,0.00236894,63358.0,63344.0,0.3748]
[1727098487539,0.00236894,63358.0,63356.0,0.26893]
[1727098487726,0.00236894,63358.0,63352.0,0.439735]
[1727098487927,0.078928,63358.0,63352.0,0.3608]
[1727098488126,0.078928,63358.0,63355.0,0.19]
[1727098488541,0.079928,63358.0,63355.0,0.19]
[1727098488742,0.079928,63358.0,63357.0,0.078929]
[1727098488936,0.001,63358.0,63357.0,0.078929]
[1727098489134,0.004,63358.0,63357.0,0.3608]
[1727098489837,0.008,63358.0,63357.0,0.3608]
[1727098490041,0.008,63358.0,63357.0,0.439729]
[1727098490844,0.009,63358.0,63357.0,0.439729]
[1727098491044,0.009,63358.0,63357.0,0.992178]
[1727098491551,0.011,63358.0,63357.0,1.940729]
[1727098492638,0.078913,63370.0,63368.0,0.078916]
[1727098492830,0.078911,63372.0,63371.0,0.078912]
[1727098493030,0.39564,63381.0,63372.0,0.07891]
[1727098493031,0.078908,63375.0,63372.0,0.07891]
[1727098493248,0.078908,63375.0,63374.0,0.5508]
[1727098493630,0.078908,63375.0,63374.0,0.3608]
[1727098494234,0.19,63377.0,63368.0,0.001]
[1727098494436,0.157828,63369.0,63368.0,0.001]
[1727098494636,0.078914,63369.0,63368.0,0.001]
[1727098494842,0.078914,63369.0,63368.0,0.078916]
[1727098495237,0.078916,63368.0,63367.0,0.3608]
[1727098495441,0.078922,63363.0,63362.0,0.078922]
[1727098495647,0.078927,63359.0,63358.0,0.439727]
[1727098495948,0.078927,63359.0,63358.0,0.439728]
[1727098496532,0.078921,63365.0,63364.0,0.078919]
[1727098496745,0.078921,63365.0,63364.0,0.439719]
[1727098497041,0.078921,63365.0,63364.0,1.939719]
[1727098497236,0.026,63369.0,63368.0,0.078916]
[1727098497237,0.090915,63369.0,63368.0,0.078916]
[1727098497847,0.078916,63368.0,63367.0,0.001]
[1727098498034,0.078918,63366.0,63365.0,0.078918]
[1727098498840,0.012,63369.0,63368.0,0.078916]
[1727098499041,0.078916,63368.0,63367.0,0.001]
[1727098499246,0.078927,63359.0,63358.0,0.3608]
[1727098499835,0.078923,63363.0,63362.0,0.078922]
[1727098500151,0.078926,63362.0,63361.0,0.078924]
[1727098500333,0.078922,63364.0,63363.0,0.078921]
[1727098500837,0.078926,63361.0,63360.0,0.078925]
[1727098501039,0.078927,63359.0,63358.0,0.7216]
[1727098501346,0.078927,63359.0,63356.0,0.07893]
[1727098501347,0.078929,63357.0,63356.0,0.07893]
[1727098501653,0.078953,63338.0,63335.0,0.0117]
[1727098501842,0.078953,63338.0,63336.0,0.078955]
[1727098502048,0.078942,63347.0,63333.0,0.3608]
[1727098502357,0.078962,63331.0,63330.0,0.3608]
[1727098502651,0.078962,63331.0,63319.0,0.19]
[1727098502652,0.078963,63330.0,63319.0,0.3608]
[1727098502945,0.078963,63330.0,63308.0,0.0117]
[1727098502946,0.5508,63320.0,63306.0,0.3608]
[1727098503142,0.19,63314.0,63306.0,0.3608]
[1727098503340,0.19,63314.0,63299.0,0.079001]
[1727098503341,0.5508,63307.0,63297.0,0.3608]
[1727098503548,0.079003,63298.0,63297.0,0.3608]
[1727098503741,0.269003,63298.0,63297.0,0.3608]
[1727098504046,0.19,63302.0,63297.0,0.3608]
[1727098504250,0.077994,63306.0,63297.0,0.3608]
[1727098504437,0.3608,63307.0,63297.0,0.3608]
[1727098504438,0.078995,63305.0,63297.0,0.3608]
[1727098504643,0.079003,63298.0,63297.0,0.3608]
[1727098504843,0.079011,63292.0,63290.0,0.3608]
[1727098505149,0.29,63303.0,63290.0,0.3608]
[1727098505451,0.29,63302.0,63297.0,0.3608]
[1727098505654,0.29,63302.0,63290.0,0.3608]
[1727098505655,0.079012,63292.0,63290.0,0.3608]
[1727098505843,0.3608,63301.0,63297.0,0.001]
[1727098505844,0.080003,63298.0,63297.0,0.001]
[1727098506345,0.001,63298.0,63297.0,0.3618]
[1727098506546,0.00237068,63306.0,63297.0,0.3608]
[1727098506737,0.00237068,63306.0,63290.0,0.3618]
[1727098506738,0.001,63303.0,63290.0,0.3618]
[1727098506936,0.001,63303.0,63296.0,0.3608]
[1727098507133,0.6508,63301.0,63280.0,0.3608]
[1727098507337,0.29,63292.0,63280.0,0.3608]
[1727098507538,0.3608,63294.0,63280.0,0.3608]
[1727098507539,0.079022,63283.0,63280.0,0.3608]
[1727098507750,0.079023,63282.0,63280.0,0.3608]
[1727098508045,0.079023,63282.0,63267.0,0.0539]
[1727098508046,0.079025,63280.0,63257.0,0.3608]
[1727098508239,0.3608,63267.0,63257.0,0.3608]
[1727098508435,0.3608,63267.0,63258.0,1.5]
[1727098508651,0.3,63272.0,63258.0,1.5]
[1727098508847,0.079041,63268.0,63258.0,1.5]
[1727098509242,0.3,63272.0,63258.0,1.5]
[1727098509444,0.3608,63262.0,63258.0,1.5]
[1727098509747,0.001,63267.0,63258.0,1.5]
[1727098510045,0.001,63267.0,63265.0,0.079043]
[1727098510238,0.079031,63276.0,63263.0,0.3608]
[1727098510445,0.001,63268.0,63263.0,0.3608]
[1727098510843,0.001,63272.0,63271.0,0.079037]
[1727098511441,0.079026,63280.0,63271.0,0.079037]
[1727098511747,0.079026,63280.0,63269.0,0.3608]
[1727098512257,0.29,63276.0,63263.0,0.3608]
[1727098512451,0.3,63267.0,63263.0,0.3608]
[1727098512657,0.079044,63265.0,63263.0,0.3608]
[1727098513148,0.3608,63269.0,63263.0,0.3608]
[1727098513347,0.07904,63268.0,63263.0,0.3608]
[1727098513555,0.001,63272.0,63263.0,0.3608]
[1727098513855,0.001,63276.0,63271.0,0.079037]
[1727098514156,0.001,63276.0,63265.0,0.29]
[1727098514450,0.001,63276.0,63270.0,0.439838]
[1727098514451,0.079033,63275.0,63270.0,0.439838]
[1727098514642,0.001,63276.0,63259.0,0.29]
[1727098514643,0.001,63276.0,63271.0,0.079036]
[1727098514844,0.001,63272.0,63265.0,0.439843]
[1727098515045,0.001,63272.0,63265.0,0.3608]
[1727098515250,0.3,63266.0,63265.0,0.3608]
[1727098515449,0.079039,63269.0,63263.0,0.3628]
[1727098515652,0.078039,63269.0,63267.0,0.079041]
[1727098515844,0.078039,63269.0,63263.0,0.3618]
[1727098515845,0.3626,63275.0,63263.0,0.3618]
[1727098516146,0.3618,63275.0,63268.0,0.07904]
[1727098516343,0.3618,63275.0,63273.0,0.079033]
[1727098516642,0.079033,63274.0,63271.0,0.001]
[1727098516844,0.001,63275.0,63271.0,0.001]
[1727098517053,0.001,63275.0,63274.0,0.079033]
[1727098517253,0.001,63275.0,63272.0,0.3443]
[1727098517556,0.3608,63281.0,63276.0,0.079029]
[1727098517756,0.3608,63281.0,63273.0,0.0518]
[1727098517757,0.29,63277.0,63273.0,0.0518]
[1727098518256,0.079039,63269.0,63268.0,0.001]
[1727098518953,0.079039,63269.0,63268.0,0.08004]
[1727098519154,0.079039,63269.0,63259.0,0.0507]
[1727098519155,0.079035,63272.0,63271.0,0.003]
[1727098519657,0.079045,63264.0,63263.0,0.3608]
[1727098519862,0.07904,63268.0,63263.0,0.3608]
[1727098520053,0.001,63269.0,63265.0,0.079044]
[1727098520558,0.080035,63272.0,63271.0,0.003]
[1727098520752,0.380035,63272.0,63271.0,0.003]
[1727098520948,0.854195,63272.0,63271.0,0.003]
[1727098521150,0.080035,63272.0,63271.0,0.003]
[1727098522046,0.079037,63271.0,63268.0,0.07904]
[1727098522555,0.079038,63270.0,63263.0,0.3618]
[1727098522856,0.001,63272.0,63271.0,0.080037]
[1727098522857,0.002,63272.0,63271.0,0.080037]
[1727098523050,0.0023719,63285.0,63281.0,0.079022]
[1727098523051,0.079023,63282.0,63281.0,0.079022]
[1727098523451,0.0023719,63285.0,63284.0,0.07902]
[1727098524455,0.0023719,63285.0,63280.0,0.079025]
[1727098524456,0.079024,63281.0,63280.0,0.079025]
[1727098524661,0.079028,63278.0,63277.0,0.439829]
[1727098524966,0.0093719,63285.0,63284.0,0.07902]
[1727098525464,0.0093719,63285.0,63284.0,0.43982]
[1727098526061,0.002,63278.0,63277.0,1.86176]
[1727098526259,0.002,63278.0,63277.0,1.939829]
[1727098526456,0.0093719,63285.0,63277.0,1.8608]
[1727098526659,0.0093719,63285.0,63284.0,0.43982]
[1727098526965,0.0183719,63285.0,63284.0,0.43982]
[1727098527162,0.0113719,63285.0,63284.0,0.43982]
[1727098528057,0.0963909,63285.0,63284.0,0.3608]
[1727098528361,0.079022,63283.0,63281.0,0.079023]
[1727098528865,0.079022,63283.0,63281.0,0.439823]
[1727098529169,0.0083719,63285.0,63283.0,0.079021]
[1727098529356,0.0083719,63285.0,63280.0,0.3608]
[1727098529672,0.0083719,63285.0,63284.0,0.07902]
[1727098530364,0.0163719,63285.0,63284.0,0.07902]
[1727098530565,0.0103719,63285.0,63284.0,0.07902]
[1727098531565,0.0173719,63285.0,63284.0,0.07902]
[1727098531864,0.0183719,63285.0,63284.0,0.07902]
[1727098532066,0.078997,63303.0,63290.0,0.079013]
[1727098532266,0.36317068,63306.0,63305.0,0.078994]
[1727098532267,0.00237068,63306.0,63305.0,0.078994]
[1727098532458,0.00237068,63306.0,63302.0,0.5508]
[1727098532459,0.6026779,63325.0,63313.0,0.078984]
[1727098532660,0.6026779,63325.0,63312.0,0.3608]
[1727098532661,0.3608,63323.0,63312.0,0.3608]
[1727098532861,0.19,63320.0,63312.0,0.3608]
[1727098533265,0.078984,63314.0,63312.0,0.439784]
[1727098533460,0.3608,63323.0,63312.0,0.3608]
[1727098533667,0.19,63325.0,63319.0,0.078976]
[1727098533872,0.078973,63322.0,63319.0,0.439776]
[1727098534069,0.078975,63321.0,63319.0,0.078976]
[1727098534271,0.268969,63325.0,63320.0,0.078975]
[1727098534473,0.268969,63325.0,63305.0,0.3608]
[1727098534474,0.19,63325.0,63316.0,0.07898]
[1727098534664,0.3608,63328.0,63318.0,0.3608]
[1727098534866,0.001,63325.0,63318.0,0.3608]
[1727098535070,0.001,63325.0,63323.0,0.078971]
[1727098535375,0.001,63325.0,63315.0,0.078981]
[1727098535376,0.007,63320.0,63315.0,0.078981]
[1727098535572,0.007,63320.0,63312.0,0.3618]
[1727098535573,0.19,63319.0,63316.0,0.005]
[1727098535873,0.078979,63317.0,63316.0,0.005]
[1727098536271,0.157958,63317.0,63316.0,0.005]
[1727098536466,1.231758,63317.0,63316.0,0.005]
[1727098536677,0.078993,63306.0,63305.0,0.3608]
[1727098536972,0.268993,63306.0,63305.0,0.3608]
[1727098537163,0.078993,63306.0,63305.0,0.3608]
[1727098537368,0.070993,63306.0,63305.0,0.3608]
[1727098538678,0.078989,63309.0,63308.0,0.078989]
[1727098538878,0.078993,63307.0,63305.0,0.3608]
[1727098539075,0.5508,63312.0,63305.0,0.3608]
[1727098539076,0.078993,63306.0,63305.0,0.3608]
[1727098539279,0.085993,63306.0,63305.0,0.3618]
[1727098539575,0.085993,63306.0,63305.0,0.001]
[1727098540075,0.47388,63306.0,63299.0,0.079]
[1727098540273,0.47388,63306.0,63294.0,0.0464]
[1727098540274,0.078998,63303.0,63294.0,0.0464]
[1727098540483,0.19,63307.0,63299.0,0.3608]
[1727098540675,0.078998,63303.0,63300.0,0.079]
[1727098541080,0.004,63306.0,63299.0,0.3608]
[1727098541280,0.079002,63299.0,63298.0,0.079002]
[1727098541582,0.079002,63299.0,63298.0,0.439802]
[1727098541881,0.194,63306.0,63305.0,0.001]
[1727098541882,0.358986,63306.0,63305.0,0.001]
[1727098542070,1.319786,63306.0,63305.0,0.001]
[1727098542272,0.079007,63295.0,63294.0,0.0464]
[1727098542571,0.079007,63295.0,63294.0,0.125408]
[1727098542774,0.079007,63295.0,63294.0,0.0464]
[1727098544177,0.079006,63296.0,63295.0,0.079005]
[1727098544381,0.19,63298.0,63290.0,0.3608]
[1727098544579,0.004,63299.0,63284.0,0.07902]
[1727098544580,0.079018,63286.0,63284.0,0.07902]
[1727098544977,0.079018,63286.0,63280.0,0.079025]
[1727098545288,0.079027,63279.0,63278.0,0.0468]
[1727098546779,0.081027,63279.0,63278.0,0.0468]
[1727098546988,0.083027,63279.0,63278.0,0.0468]
[1727098547383,0.162054,63279.0,63278.0,0.0468]
[1727098547588,0.079035,63272.0,63271.0,0.00112]
[1727098547786,0.079037,63271.0,63269.0,0.079039]
[1727098548093,0.079031,63276.0,63274.0,0.079032]
[1727098548281,0.079032,63275.0,63269.0,0.3608]
[1727098548480,0.004,63279.0,63269.0,0.3608]
[1727098548481,0.079038,63270.0,63269.0,0.3608]
[1727098548682,0.001,63272.0,63269.0,0.439839]
[1727098548881,0.001,63272.0,63269.0,0.3608]
[1727098549091,0.002,63272.0,63269.0,0.3608]
[1727098549393,0.002,63272.0,63271.0,0.079037]
[1727098549583,0.001,63272.0,63271.0,0.079037]
[1727098549890,0.079038,63271.0,63270.0,0.079037]
[1727098550307,0.3608,63274.0,63266.0,1.55092]
[1727098550480,0.072041,63268.0,63267.0,0.079041]
[1727098550779,0.080036,63272.0,63271.0,0.079037]
[1727098550981,0.079042,63267.0,63266.0,0.05092]
[1727098551291,0.002,63272.0,63269.0,0.079038]
[1727098551482,0.002,63272.0,63266.0,0.0498]
[1727098551483,0.002,63272.0,63271.0,0.079037]
[1727098552406,0.001,63272.0,63271.0,0.079037]
[1727098552577,0.439833,63274.0,63273.0,0.079034]
[1727098553289,0.079024,63282.0,63281.0,0.079023]
[1727098553591,0.07902,63285.0,63284.0,0.079019]
[1727098554179,0.079024,63282.0,63281.0,0.079023]
[1727098554388,0.079029,63277.0,63276.0,0.3608]
[1727098555096,0.348058,63277.0,63276.0,0.3608]
[1727098555395,0.079032,63276.0,63275.0,0.079031]
[1727098555984,0.3608,63276.0,63267.0,0.939831]
[1727098556178,0.079036,63272.0,63271.0,0.079035]
[1727098556793,0.079036,63272.0,63263.0,0.16328874]
[1727098556794,0.079045,63264.0,63263.0,0.24233374]
[1727098556984,0.30543664,63264.0,63263.0,0.179447]
[1727098557594,0.38448164,63264.0,63263.0,0.1004]
[1727098557996,0.38448164,63264.0,63263.0,0.179447]
[1727098558295,0.30543664,63264.0,63263.0,0.179447]
[1727098558685,0.3608,63270.0,63269.0,0.079039]
[1727098559494,0.439831,63276.0,63264.0,0.079045]
[1727098559801,0.439831,63276.0,63266.0,0.5508]
[1727098559998,0.3608,63283.0,63271.0,0.19]
[1727098560193,0.3608,63277.0,63272.0,0.3608]
[1727098560798,0.3608,63277.0,63276.0,0.07903]
[1727098561097,0.3608,63277.0,63261.0,0.405848]
[1727098561098,0.3608,63277.0,63267.0,0.19]
[1727098561302,0.3608,63283.0,63267.0,0.19]
[1727098561303,0.079027,63279.0,63278.0,0.079028]
[1727098562193,0.079027,63279.0,63267.0,0.269041]
[1727098562194,0.439822,63283.0,63281.0,0.079024]
[1727098562395,0.3608,63283.0,63282.0,0.079023]
[1727098563395,0.3608,63283.0,63282.0,0.158046]
[1727098563585,0.00237135,63292.0,63283.0,0.079022]
[1727098563789,0.00237135,63292.0,63291.0,0.079012]
[1727098564198,0.00237135,63292.0,63291.0,1.579012]
[1727098564587,0.3608,63306.0,63291.0,1.769012]
[1727098564787,0.3608,63313.0,63312.0,0.078985]
[1727098565194,0.3608,63313.0,63308.0,0.19]
[1727098565195,0.00237049,63314.0,63313.0,0.078984]
[1727098565787,0.3608,63321.0,63318.0,0.078977]
[1727098566299,0.014,63314.0,63312.0,0.078985]
[1727098567193,0.014,63314.0,63309.0,0.0522]
[1727098567496,0.014,63314.0,63312.0,0.078985]
[1727098567885,0.014,63314.0,63313.0,0.4101]
[1727098568103,0.014,63314.0,63313.0,0.489084]
[1727098568601,0.014,63314.0,63313.0,0.439784]
[1727098568802,0.014,63314.0,63307.0,0.078991]
[1727098568803,0.204,63314.0,63307.0,0.078991]
[1727098569103,0.001,63314.0,63305.0,0.3608]
[1727098569293,0.001,63314.0,63312.0,0.078985]
[1727098569493,0.001,63314.0,63313.0,0.078984]
[1727098569797,0.001,63314.0,63308.0,0.07899]
[1727098569996,0.001,63314.0,63303.0,0.4133]
[1727098570191,0.001,63314.0,63313.0,0.078984]
[1727098570388,0.001,63314.0,63308.0,0.07899]
[1727098570603,0.011,63314.0,63308.0,0.07899]
[1727098571102,0.078993,63306.0,63304.0,0.078995]
[1727098571400,0.078993,63306.0,63302.0,0.0497]
[1727098571594,0.19,63307.0,63302.0,0.0497]
[1727098571791,0.3608,63309.0,63302.0,0.0497]
[1727098571999,0.07899,63308.0,63306.0,0.078992]
[1727098572191,0.3608,63309.0,63302.0,0.0497]
[1727098573000,0.3608,63315.0,63314.0,0.078983]
[1727098573704,0.078984,63314.0,63311.0,0.078985]
[1727098573900,0.3608,63315.0,63307.0,0.19]
[1727098574600,0.3608,63315.0,63314.0,0.078983]
[1727098575308,0.078983,63314.0,63304.0,0.3608]
[1727098575504,0.3608,63309.0,63304.0,0.439795]
[1727098575706,0.078994,63305.0,63304.0,0.078995]
[1727098576106,0.3718,63315.0,63309.0,0.078988]
[1727098576303,0.3718,63315.0,63302.0,0.6005]
[1727098576604,0.3608,63309.0,63302.0,0.6005]
[1727098576801,0.078996,63304.0,63303.0,0.078996]
[1727098577396,0.078991,63308.0,63305.0,0.078993]
[1727098577596,0.078992,63307.0,63305.0,0.078993]
[1727098577811,0.3608,63309.0,63305.0,0.078993]
[1727098578103,0.078993,63306.0,63305.0,0.078993]
[1727098578304,0.3608,63309.0,63308.0,0.07899]
[1727098578509,0.078987,63311.0,63310.0,0.078988]
[1727098578707,0.3786,63315.0,63302.0,0.4105]
[1727098578708,0.078992,63307.0,63302.0,0.4105]
[1727098578907,0.078987,63311.0,63310.0,0.078986]
[1727098579113,0.017,63315.0,63314.0,0.157966]
[1727098579317,0.0917779,63332.0,63314.0,0.19]
[1727098579501,0.00316957,63338.0,63327.0,0.19]
[1727098579502,0.3608,63333.0,63327.0,0.19]
[1727098579700,0.3608,63333.0,63328.0,0.078964]
[1727098579701,0.078965,63329.0,63328.0,0.078964]
[1727098580414,0.013,63332.0,63327.0,0.19]
[1727098580610,0.013,63332.0,63331.0,0.629762]
[1727098580913,0.078937,63351.0,63331.0,1.38666593]
[1727098581107,0.078939,63349.0,63344.0,0.5508]
[1727098581410,0.19,63348.0,63332.0,0.0611]
[1727098581610,0.3608,63344.0,63335.0,0.078956]
[1727098581796,0.078953,63338.0,63332.0,0.07896]
[1727098582108,0.078954,63337.0,63333.0,1.5]
[1727098582506,0.078956,63336.0,63333.0,1.5]
[1727098582702,0.078949,63341.0,63328.0,0.191]
[1727098583007,0.3608,63344.0,63333.0,0.078959]
[1727098583008,0.3618,63338.0,63333.0,0.078959]
[1727098583203,0.3618,63338.0,63328.0,1.691]
[1727098583514,0.3618,63338.0,63332.0,0.009]
[1727098583813,0.078954,63337.0,63332.0,0.009]
[1727098584019,0.078957,63335.0,63332.0,0.009]
[1727098584909,0.3618,63338.0,63332.0,0.009]
[1727098585105,0.3608,63338.0,63329.0,0.19]
[1727098585311,0.3608,63338.0,63333.0,0.005]
[1727098585508,0.3608,63338.0,63337.0,0.078954]
[1727098585812,0.3608,63338.0,63337.0,1.39090072]
[1727098586034,0.3628,63338.0,63337.0,1.39090072]
[1727098586312,0.002,63338.0,63337.0,1.39090072]
[1727098586703,0.078938,63350.0,63345.0,0.078944]
[1727098586914,0.3608,63351.0,63345.0,0.078944]
[1727098587114,0.3608,63351.0,63340.0,0.3608]
[1727098587115,0.078945,63345.0,63341.0,1.578948]
[1727098587510,0.078945,63345.0,63342.0,0.078948]
[1727098587705,0.078945,63345.0,63338.0,0.23539401]
[1727098587912,0.7216,63351.0,63345.0,0.078944]
[1727098588216,0.7216,63351.0,63350.0,0.078938]
[1727098589014,0.00236896,63356.0,63350.0,0.078938]
[1727098589212,0.078938,63350.0,63346.0,0.3608]
[1727098589615,0.3608,63347.0,63333.0,0.19]
[1727098589809,0.078943,63346.0,63333.0,0.19]
[1727098590013,0.3608,63347.0,63336.0,0.078955]
[1727098590310,0.078953,63338.0,63332.0,0.3608]
[1727098590514,0.157906,63338.0,63332.0,0.3608]
[1727098590720,0.078967,63327.0,63323.0,0.19]
[1727098590921,0.83444,63338.0,63329.0,0.078964]
[1727098590922,0.078962,63331.0,63329.0,0.078964]
[1727098591212,0.078956,63336.0,63323.0,0.19]
[1727098591418,0.078963,63330.0,63327.0,0.078966]
[1727098591611,0.078967,63327.0,63323.0,0.07897]
[1727098591811,0.3608,63332.0,63314.0,0.44215212]
[1727098591812,0.3608,63329.0,63314.0,0.44215212]
[1727098592015,0.078982,63315.0,63314.0,0.00236912]
[1727098592911,0.3608,63321.0,63314.0,0.08135212]
[1727098593110,0.078981,63316.0,63314.0,0.08135212]
[1727098593428,0.3608,63321.0,63315.0,0.078982]
[1727098593611,0.078977,63319.0,63316.0,0.07898]
[1727098594925,0.078979,63318.0,63314.0,0.00236912]
[1727098595129,0.003,63315.0,63314.0,0.00236912]
[1727098595322,0.003,63315.0,63314.0,0.08135212]
[1727098595920,0.003,63321.0,63320.0,0.078975]
[1727098596332,0.078965,63328.0,63322.0,0.078973]
[1727098596539,0.3608,63326.0,63319.0,0.3608]
[1727098596833,0.080982,63315.0,63314.0,0.00236912]
[1727098597030,0.085982,63315.0,63314.0,0.00236912]